[Event "FIDE WSTC Open 50 2025"]
[Site "Prague"]
[Date "2025.02.24"]
[Round "7.30"]
[White "Dishman, Stephen"]
[Black "Svenn, Gosta"]
[Result "0-1"]
[Annotator "TA"]
[ECO "A04"]
[WhiteElo "2273"]
[BlackElo "2290"]
[PlyCount "82"]
[EventDate "2025.02.17"]
[EventType "team-tourn"]
[EventCountry "CZE"]
[SourceTitle "playchess.com"]
[Source "ChessBase"]
[SourceQuality "1"]
[TimeControl "40/5400+30:1800+30"]

{[%evp 9,82,42,40,21,49,49,61,54,58,64,60,47,86,61,80,47,44,39,69,62,95,34,46,45,54,42,64,54,68,50,66,62,68,37,35,35,42,35,118,97,105,21,26,-78,-89,-102,-80,-82,-100,-77,-35,-637,-610,-605,-615,-587,-591,-581,-567,-529,-466,-1052,-1008,-1010,-1010,-2969,-2114,-29990,-29986,-29986,-29987,-29987,-29988,-29988,-29989]} 1. Nf3 {[%emt 0:00:07]} f5 {[%emt 0:00:13]} 2. c4 {[%emt 0:00:36]} Nf6 {[%emt 0:00:05]} 3. g3 {[%emt 0:00:07]} e6 {[%emt 0:00:23]} 4. Bg2 {[%emt 0:00:15]} Be7 {[%emt 0:00:14]} 5. O-O {[%emt 0:00:22]} d5 {[%emt 0:01:06]} 6. b3 {[%emt 0:00:38] A10: English Opening: Unusual Replies for Black.} Nc6 {[%emt 0:00:26]} 7. cxd5 {[%emt 0:05:40]} exd5 {[%emt 0:01:12]} 8. Bb2 {[%emt 0:07:24] White is slightly better.} O-O {[%emt 0:00:46]} 9. e3 {[%emt 0:04:17]} Bd7 {[%emt 0:14:00][%cal Bc8d7,Bd7e8,Be8h5][%mdl 32]} 10. d3 $146 {[%emt 0:04:40]} (10. Nc3 Be8 11. Rc1 Bh5 12. Ne2 Bxf3 13. Bxf3 Qd6 14. Qc2 Ne4 15. Bg2 Bf6 16. Bxf6 Rxf6 {1-0 Aupi Royo,J (2329)-Vertes,A (2343) FRA-ESP email 2008}) 10... Be8 {[%emt 0:00:23]} 11. a3 {[%emt 0:01:15]} a5 {[%emt 0:00:35]} 12. Nbd2 {[%emt 0:04:40]} Bh5 {[%emt 0:02:05]} 13. Qc2 {[%emt 0:02:47]} Kh8 {[%emt 0:02:36]} 14. Rfe1 {[%emt 0:01:52]} Bd6 {[%emt 0:08:39]} 15. Bc3 {[%emt 0:02:24]} (15. Nh4 $16) 15... Qe7 $14 {[%emt 0:06:54]} 16. Qb2 {[%emt 0:01:53]} Rae8 {[%emt 0:00:45]} 17. Nd4 {[%emt 0:10:00]} Nxd4 {[%emt 0:11:32]} 18. Bxd4 {[%emt 0:01:13]} Qd7 {[%emt 0:16:42]} 19. Nf3 {[%emt 0:07:27]} c5 {[%emt 0:11:02]} 20. Bc3 $1 {[%emt 0:06:29]} Qb5 {[%emt 0:00:18]} 21. Qc2 {[%emt 0:05:26]} b6 {[%emt 0:01:26]} 22. Nh4 {[%emt 0:02:33]} Qd7 {[%emt 0:00:41]} 23. Qb2 {[%emt 0:01:12]} d4 {[%emt 0:02:16]} 24. exd4 $16 {[%emt 0:01:27]} f4 {[%emt 0:00:36]} 25. Rxe8 {[%emt 0:04:03]} (25. dxc5 $16 bxc5 26. Rxe8 (26. Bxa5 fxg3 27. hxg3 Ng4 $14) 26... Qxe8 27. Re1 (27. Bxa5 fxg3 28. hxg3 Ng4 $14)) 25... Rxe8 $11 {[%emt 0:00:25]} 26. Bf3 {[%emt 0:06:49] [#] Repels Re2} (26. Rf1 $11) 26... Bxf3 $1 $17 {[%emt 0:08:35]} 27. Nxf3 {[%emt 0:00:04] [#]} Qg4 $1 {[%emt 0:00:16] Black is more active.} 28. Ne5 {[%emt 0:11:18]} Bxe5 {[%emt 0:00:07]} 29. dxe5 {[%emt 0:00:02] White is weak on the light squares} f3 $40 {[%emt 0:00:12][%cal Og4h3][%mdl 128] ( -> ...Qh3!) Black has some attack.} 30. Kf1 $2 {[%emt 0:01:22][%mdl 8192] This costs White the game.} (30. exf6 $2 Qh3 31. fxg7+ Kg8 32. Kh1 Qg2#) (30. Qc1 $15 Nd5 31. Bb2) 30... Qh3+ $19 {[%emt 0:03:54]} 31. Ke1 {[%emt 0:00:00]} Qxh2 {[%emt 0:00:52][%cal Of6e4] And now ...Ne4! would win.} 32. Kd1 {[%emt 0:00:43]} Ng4 {[%emt 0:02:27]} 33. Qd2 {[%emt 0:01:33]} Nxf2+ {[%emt 0:02:20]} 34. Kc2 {[%emt 0:00:22]} Ng4 {[%emt 0:00:14]} 35. Re1 {[%emt 0:02:29] Against Ne3+} (35. Qxh2 $142 Nxh2 36. Be1 Rxe5 37. Rd1) 35... f2 {[%emt 0:00:58]} 36. Rf1 {[%emt 0:01:45]} Qg2 {[%emt 0:01:04]} 37. Qe2 {[%emt 0:00:58] [#]} Qxf1 $3 {[%emt 0:00:09][%mdl 512]} 38. Qxg4 {[%emt 0:00:14]} (38. Qxf1 Ne3+) 38... Rd8 {[%emt 0:00:27] Black mates.} 39. e6 {[%emt 0:00:47]} Qxd3+ {[%emt 0:00:07]} (39... Rxd3 40. Qxg7#) 40. Kb2 {[%emt 0:00:07] [#]} Qxc3+ $3 {[%emt 0:00:36][%mdl 512]} 41. Kxc3 {[%emt 0:30:19]} f1=Q {[%emt 0:30:07] Weighted Error Value: White=0.71/Black=0.30  Loses game:     	White=1     	---        Mistake:       	White=4     	Black=1      Inaccurate:     	White=2     	Black=5      OK:         	White=8     	Black=7      Best:        	White=2     	Black=3      Strong:       	White=1     	Black=2} (41... f1=R $2 {loses.} 42. e7 Rg8 43. Qe2 $18) 0-1

[Event "FIDE WSTC Open 50 2025"]
[Site "Prague"]
[Date "2025.02.24"]
[Round "7.31"]
[White "Jaderberg, Bjorn"]
[Black "Josse, Mark"]
[Result "1/2-1/2"]
[Annotator "TA"]
[ECO "D00"]
[WhiteElo "2134"]
[BlackElo "2139"]
[PlyCount "41"]
[EventDate "2025.02.17"]
[EventType "team-tourn"]
[EventCountry "CZE"]
[SourceTitle "playchess.com"]
[Source "ChessBase"]
[SourceQuality "1"]
[TimeControl "40/5400+30:1800+30"]

{[%evp 9,41,-26,5,-18,-21,-30,-1,-31,12,20,14,0,0,0,20,9,9,16,25,25,50,38,41,27,39,24,52,35,60,20,22,20,23,16]} 1. d4 {[%emt 0:00:02]} d5 {[%emt 0:00:10]} 2. Nc3 {[%emt 0:00:10]} Nf6 {[%emt 0:00:18]} 3. Bf4 {[%emt 0:00:09]} e6 {[%emt 0:00:18]} 4. e3 {[%emt 0:00:13]} Bb4 {[%emt 0:01:44]} 5. Bd3 {[%emt 0:00:36]} b6 {[%emt 0:02:20]} 6. a3 {[%emt 0:02:31] D00: 1 d4 d5: Unusual lines.} Bxc3+ {[%emt 0:00:20]} 7. bxc3 {[%emt 0:00:08]} Ba6 $146 {[%emt 0:04:33]} ({Predecessor:} 7... c5 8. Qf3 Nc6 9. h4 Bb7 10. h5 h6 11. Qg3 Rg8 12. f3 Rc8 13. dxc5 bxc5 {1-0 Jakob,M (2118)-Kuznecovs,N (2292) Oberliga Ost-B 1920 2019 (6.1)}) 8. h3 {[%emt 0:01:08] The position is equal.} Bxd3 {[%emt 0:02:35]} 9. cxd3 {[%emt 0:01:00]} O-O {[%emt 0:00:31]} 10. Bg5 {[%emt 0:02:13]} Nbd7 {[%emt 0:01:07][%cal Bb8d7,Bd7f6,Bf6e4][%mdl 32]} 11. Nf3 {[%emt 0:01:26]} Qc8 {[%emt 0:06:23]} 12. Qa4 {[%emt 0:03:15]} c5 {[%emt 0:00:21]} 13. O-O {[%emt 0:01:37]} c4 {[%emt 0:06:06]} 14. dxc4 {[%emt 0:04:37]} dxc4 {[%emt 0:01:08]} 15. Bxf6 {[%emt 0:01:52]} Nxf6 {[%emt 0:08:12]} 16. Ne5 {[%emt 0:02:50]} Ne4 {[%emt 0:12:48]} 17. Qc2 {[%emt 0:04:56]} (17. Qxc4 Qxc4 18. Nxc4 Rac8 $19) 17... Nf6 {[%emt 0:02:30]} 18. a4 {[%emt 0:01:39]} Nd7 {[%emt 0:01:01]} 19. f4 {[%emt 0:02:08]} Nxe5 {[%emt 0:03:58]} 20. fxe5 {[%emt 0:00:26]} Qc6 {[%emt 0:00:12]} 21. Kh2 {[%emt 0:07:18] Weighted Error Value: White=0.14 (very precise) /Black=0.14 (very precise)   Inaccurate:     	White=2     	Black=3      OK:         	White=3     	Black=3} 1/2-1/2

[Event "FIDE WSTC Open 50 2025"]
[Site "Prague"]
[Date "2025.02.24"]
[Round "7.32"]
[White "Frostick, Clive A"]
[Black "Wengholm, Anders"]
[Result "0-1"]
[Annotator "TA"]
[ECO "B07"]
[WhiteElo "2105"]
[BlackElo "2132"]
[PlyCount "98"]
[EventDate "2025.02.17"]
[EventType "team-tourn"]
[EventCountry "CZE"]
[SourceTitle "playchess.com"]
[Source "ChessBase"]
[SourceQuality "1"]
[TimeControl "40/5400+30:1800+30"]

{[%evp 17,98,36,54,45,44,40,61,25,46,42,40,40,33,11,0,-8,70,-39,-17,-182,-172,-182,-64,-52,-58,-69,-67,-62,-4,-150,-137,-136,-137,-168,-53,-56,-55,-202,-178,-219,-196,-200,-191,-218,-224,-224,-210,-197,-159,-171,-126,-226,-223,-237,-176,-230,-202,-199,-165,-191,-171,-384,-367,-440,-440,-398,-382,-520,-489,-577,-575,-560,-496,-518,-470,-462,-462,-474,-428,-552,-552,-534,-530]} 1. e4 {[%emt 0:00:09]} d6 {[%emt 0:03:26]} 2. d4 {[%emt 0:01:15]} Nf6 {[%emt 0:00:10]} 3. Nc3 {[%emt 0:00:52]} Nbd7 {[%emt 0:00:19]} 4. Nf3 {[%emt 0:04:43]} e5 {[%emt 0:00:11]} 5. Bc4 {[%emt 0:00:52]} Be7 {[%emt 0:00:09]} 6. O-O {[%emt 0:01:26]} c6 {[%emt 0:00:15]} 7. a4 {[%emt 0:00:56]} Qc7 {[%emt 0:00:28]} 8. Re1 {[%emt 0:04:50]} O-O {[%emt 0:03:48]} 9. h3 {[%emt 0:06:32]} b6 {[%emt 0:02:03]} 10. Be3 {[%emt 0:16:30] C41: Philidor Defence.} a6 {[%emt 0:10:14]} 11. Ba2 {[%emt 0:05:13]} Bb7 {[%emt 0:05:57]} 12. dxe5 {[%emt 0:06:47] White is slightly better.} Nxe5 {[%emt 0:14:35]} 13. Nd4 $146 {[%emt 0:09:03]} (13. Nd2 b5 14. f4 b4 15. Ne2 Ned7 16. Ng3 g6 17. Bf2 Nc5 18. Bxc5 dxc5 19. Qf3 {1-0 Kracht,R (1900)-Conrad,J (2078) Dortmund Sparkassen op-A 46th 2018 (7)}) 13... g6 {[%emt 0:00:54] Wards off Nf5} 14. Bh6 {[%emt 0:02:53]} Rfe8 {[%emt 0:00:45]} 15. f4 {[%emt 0:00:44]} Ned7 {[%emt 0:00:45]} 16. Qd3 {[%emt 0:09:31][%cal Oe4e5] e5! is the strong threat.} b5 {[%emt 0:02:23]} (16... d5 $11) 17. Kh1 {[%emt 0:02:27]} (17. Nf5 $14) 17... c5 {[%emt 0:02:40]} (17... Nc5 $5 18. Qe3 Bd8 $11 (18... b4 19. e5 $14)) 18. Ndxb5 {[%emt 0:02:49]} axb5 $19 {[%emt 0:00:18]} 19. Nxb5 {[%emt 0:00:08]} Qc6 {[%emt 0:00:47]} (19... Qb8 $19 {[%cal Od7b6]} 20. e5 dxe5) 20. Qc4 $1 $15 {[%emt 0:00:41] [#]} Rf8 {[%emt 0:11:54]} 21. Bxf8 {[%emt 0:01:11]} Rxf8 $40 {[%emt 0:00:06][%mdl 128] Successful Defense Black Black is up to no good.} 22. Nc3 {[%emt 0:05:58]} Nb6 {[%emt 0:03:25] Repels Nd5} (22... Nh5 $15 23. a5 (23. Nd5 Bh4 $17) 23... Bh4 (23... Nxf4 24. Nd5 $15)) 23. Nd5 {[%emt 0:04:53]} Nfxd5 $17 {[%emt 0:03:19]} (23... Nxc4 24. Nxe7+ Kg7 25. Nxc6 $18) (23... Nbxd5 24. exd5 Qd7 25. Qd3 $17) 24. exd5 {[%emt 0:00:08]} Qc7 {[%emt 0:00:14]} 25. Qe4 {[%emt 0:02:02]} Bf6 {[%emt 0:00:06]} ({Black should play} 25... Bh4 $19 26. Re3 c4) 26. a5 $15 {[%emt 0:00:56]} Nd7 {[%emt 0:01:52][%mdl 1024] Black has compensation.} 27. a6 {[%emt 0:02:58]} Bxa6 $19 {[%emt 0:00:36] A strong pair of Bishops.} 28. Bb3 {[%emt 0:03:13]} Bb7 {[%emt 0:01:38]} 29. c3 {[%emt 0:01:10]} Nb6 {[%emt 0:00:43]} 30. Ra7 {[%emt 0:02:59]} c4 {[%emt 0:01:37]} 31. Bd1 {[%emt 0:00:26]} Qb8 {[%emt 0:00:08]} (31... Nxd5 32. Qxd5 Rb8 33. Qa5 Qxa5 34. Rxa5 $18) 32. Ra5 {[%emt 0:00:09]} Kg7 {[%emt 0:01:44]} 33. Bf3 {[%emt 0:00:28]} h6 {[%emt 0:01:05]} 34. g4 {[%emt 0:00:28]} (34. Rb5 $17 Ba6 35. Ra5) 34... Qc7 {[%emt 0:02:11]} 35. Rb5 {[%emt 0:01:33]} Bc8 {[%emt 0:02:16]} 36. Rb4 {[%emt 0:00:46]} (36. Qe3 $142 Re8 37. Qg1 (37. Qxe8 $2 {perishes.} Bd7 $19)) 36... Bd7 {[%emt 0:00:52]} 37. Qe3 {[%emt 0:00:32] [#]} Na4 {[%emt 0:08:57]} 38. Ra1 {[%emt 0:00:11]} Re8 {[%emt 0:09:29]} 39. Qf2 {[%emt 0:01:00]} (39. Qd2 {was called for.}) 39... Nc5 {[%emt 0:02:23] ...Nd3 is the strong threat.} 40. Kh2 {[%emt 0:00:29]} Nd3 {[%emt 0:03:16]} 41. Qb6 {[%emt 0:08:41]} Qc8 {[%emt 0:01:20]} 42. Qxd6 {[%emt 0:03:17]} Be7 {[%emt 0:02:32] Black is clearly winning.} 43. Qb6 {[%emt 0:01:03]} Bc5 {[%emt 0:02:51]} 44. Qa6 {[%emt 0:03:42]} Qxa6 {[%emt 0:03:50]} 45. Rxa6 {[%emt 0:00:06]} Nxb4 {[%emt 0:00:10]} 46. cxb4 {[%emt 0:00:16]} Bxb4 {[%emt 0:00:09]} 47. Ra7 {[%emt 0:00:23]} Rd8 {[%emt 0:00:33]} 48. Rc7 {[%emt 0:00:39]} Bd6 {[%emt 0:00:11]} 49. Rxc4 {[%emt 0:00:09]} Rb8 {[%emt 0:00:10] Weighted Error Value: White=0.47/Black=0.21 (precise)   Loses game:     	White=1     	---        Mistake:       	White=6     	Black=4      Inaccurate:     	White=2     	---        OK:         	White=9     	Black=16     Best:        	White=3     	Black=2      Strong:       	White=1     	---        Brilliant:      	---       	Black=1} 0-1

[Event "FIDE WSTC Open 50 2025"]
[Site "Prague"]
[Date "2025.02.24"]
[Round "7.33"]
[White "Burnett, Andrew"]
[Black "Titscher, Libor"]
[Result "1-0"]
[Annotator "TA"]
[ECO "B22"]
[WhiteElo "2147"]
[BlackElo "2147"]
[PlyCount "97"]
[EventDate "2025.02.17"]
[EventType "team-tourn"]
[EventCountry "CZE"]
[SourceTitle "playchess.com"]
[Source "ChessBase"]
[SourceQuality "1"]
[TimeControl "40/5400+30:1800+30"]

{[%evp 9,97,48,76,76,68,67,77,55,74,87,71,63,67,64,61,65,55,58,61,49,54,60,58,58,58,56,72,63,62,63,57,73,83,60,69,74,50,66,87,39,71,72,416,380,341,270,438,447,451,354,463,462,432,437,447,443,794,797,738,587,895,536,1474,1448,1359,1258,1248,1133,1575,1465,1482,1422,1942,1975,5048,3172,29992,29975,29974,29975,29974,29977,29977,29976,29946,231,29989,29990,29992,29993]} 1. e4 {[%emt 0:00:13]} c5 {[%emt 0:00:01]} 2. c3 {[%emt 0:00:24]} e5 {[%emt 0:00:12]} 3. Nf3 {[%emt 0:01:59]} Nc6 {[%emt 0:00:01]} 4. Bc4 {[%emt 0:00:42]} Qc7 {[%emt 0:00:16]} 5. O-O {[%emt 0:01:13]} Be7 {[%emt 0:01:09]} 6. Na3 {[%emt 0:02:13] B22: Sicilian: 2 c3.} Nf6 {[%emt 0:00:24][%cal Oc6a5]} 7. d4 {[%emt 0:01:42]} cxd4 {[%emt 0:00:16]} 8. Nb5 {[%emt 0:00:06] White is better.} (8. cxd4 Bxa3 9. bxa3 Nxd4 10. Nxd4 Qxc4 $11) 8... Qb8 {[%emt 0:14:03]} 9. cxd4 {[%emt 0:00:08] White has more active pieces.} a6 {[%emt 0:06:33]} 10. dxe5 $146 {[%emt 0:00:09]} ({Predecessor:} 10. Nc3 exd4 11. Nxd4 O-O 12. Nf5 Bd8 13. Bb3 d5 14. Nxd5 Nxe4 15. Bf4 Qa7 16. Qg4 {0-1 Gradalski,P-Krol,S POL-chB Bielsko Biala 1991 (6)}) 10... Nxe5 {[%emt 0:06:52]} 11. Nxe5 {[%emt 0:00:08][%csl Oc8] Black has a bad bishop} Qxe5 {[%emt 0:00:17]} 12. Nc3 {[%emt 0:00:11]} O-O {[%emt 0:04:44][%cal Ob7b5]} 13. Nd5 {[%emt 0:00:09]} Nxd5 {[%emt 0:05:28]} 14. Bxd5 {[%emt 0:00:09]} (14. exd5 Bc5 $11) 14... Bc5 {[%emt 0:03:12]} 15. Rb1 {[%emt 0:14:20]} a5 {[%emt 0:13:33]} 16. Bd2 {[%emt 0:05:04]} d6 {[%emt 0:02:17]} 17. Bc3 {[%emt 0:01:45]} Qe7 {[%emt 0:01:02][%csl Od5] Strong Square White (d5)} 18. Qd2 {[%emt 0:02:04]} Be6 {[%emt 0:08:00]} 19. Bxa5 {[%emt 0:04:34]} Bxd5 {[%emt 0:02:45]} 20. exd5 {[%emt 0:00:06]} b6 {[%emt 0:08:24][%cal Bb7b6,Bb6b5,Bb5b4][%mdl 32]} 21. Bc3 {[%emt 0:00:52][%cal Ba5c3,Bc3g7,Bg7h6][%mdl 32]} Rxa2 {[%emt 0:00:54]} 22. Qf4 {[%emt 0:00:15] Wards off Qe4} b5 {[%emt 0:04:18]} 23. Rbe1 {[%emt 0:03:02]} Qd7 {[%emt 0:06:04][%cal Ob5b4]} 24. Re4 {[%emt 0:06:51]} (24. h3 $16) 24... b4 {[%emt 0:01:46]} 25. Bxg7 $40 {[%emt 0:00:45][%csl Ob4,Od6,Of7,Oh7][%mdl 128] Black has weak pawns White is out for blood.} (25. Bxb4 Rxb2 26. Bxc5 dxc5 $14) 25... f5 $2 {[%emt 0:03:48][%mdl 8192] Black cannot hold the game after this.} (25... Kxg7 $16 {is tougher.} 26. Qg5+ Kh8 27. Qf6+ Kg8) 26. Bh6 $18 {[%emt 0:02:58]} (26. Bxf8 fxe4 27. Bh6 Ra8 28. Qxe4 Qe8 $16) 26... Rf6 {[%emt 0:03:24][%cal Of6h6]} 27. Rfe1 Ra8 $2 {[%emt 0:00:48]} ({Don't blunder} 27... Rxh6 $2 28. Qg5+ (28. Re8+ Qxe8 29. Rxe8+ Kf7 $18) 28... Rg6 29. Re8+ $18) (27... fxe4 {keeps fighting.} 28. Qxf6 Ra8) 28. Re6 {[%emt 0:04:30]} Qf7 {[%emt 0:01:25]} 29. h4 {[%emt 0:02:11]} Rxe6 {[%emt 0:01:54]} 30. dxe6 {[%emt 0:00:18]} Qg6 {[%emt 0:00:22]} 31. Qf3 {[%emt 0:03:59]} Re8 {[%emt 0:00:18]} 32. Qc6 {[%emt 0:00:44]} Re7 {[%emt 0:01:02]} (32... Bd4 $142 33. Bf4 (33. Qxd6 Bxf2+ 34. Kxf2 Qxh6 $18) 33... b3) 33. Bg5 {[%emt 0:00:19]} Re8 {[%emt 0:00:23]} 34. b3 {[%emt 0:02:40]} Rf8 {[%emt 0:00:50]} 35. Qd7 {[%emt 0:01:40] And now e7 would win.} h6 {[%emt 0:00:39]} 36. e7 {[%emt 0:01:24]} Re8 {[%emt 0:00:09] [#]} 37. Bxh6 $1 {[%emt 0:00:39][%mdl 512]} Kf7 {[%emt 0:00:20]} (37... f4 38. Bg5) 38. Bg5 {[%emt 0:02:01]} Bd4 {[%emt 0:00:53]} 39. g4 {[%emt 0:01:12]} fxg4 {[%emt 0:00:36]} 40. Qxg4 {[%emt 0:00:32][%cal Oh4h5]} Be5 {[%emt 0:00:33]} 41. h5 {[%emt 0:32:13]} Qc2 {[%emt 0:05:11]} 42. Re4 {[%emt 0:00:00] Intending Qf5+ and mate.} Rg8 {[%emt 0:05:28]} 43. Qf5+ {[%emt 0:00:00]} Ke8 {[%emt 0:01:20] [#]} 44. Rxe5 $1 {[%emt 0:00:00]} Qd1+ {[%emt 0:08:12]} 45. Kg2 {[%emt 0:00:00]} Rxg5+ {[%emt 0:00:44]} 46. Qxg5 {[%emt 0:00:00]} dxe5 {[%emt 0:00:17]} 47. Qxe5 $2 {[%emt 0:00:00]} (47. Qg8+ {mates} Kxe7 48. h6 e4 49. Qg5+ Kf7 50. Qf5+ Kg8 51. Qg6+ (51. Qxe4 Qh5 $18) 51... Kf8 52. h7 (52. Qxe4 Qh5 $18) 52... Qf3+ 53. Kg1 Qd1+ 54. Kh2) 47... Qxb3 $2 {[%emt 0:03:49]} (47... Qg4+ $18 48. Qg3 Qxh5 49. Qb8+ Kxe7 50. Qxb4+ Kd7) 48. Qd6 {[%emt 0:00:00]} Kf7 {[%emt 0:07:10]} 49. Qd7 {[%emt 0:00:00] Weighted Error Value: White=0.26 (precise) /Black=1.00  Loses game:     	---       	Black=1      Mistake:       	White=1     	Black=2      Inaccurate:     	---       	Black=3      OK:         	White=15    	Black=15     Best:        	White=3     	Black=2} 1-0

[Event "FIDE WSTC Open 50 2025"]
[Site "Prague"]
[Date "2025.02.24"]
[Round "7.34"]
[White "Schulenburg, Bernd"]
[Black "Mitchell, Martin"]
[Result "1-0"]
[Annotator "TA"]
[ECO "B07"]
[WhiteElo "2144"]
[BlackElo "2143"]
[PlyCount "105"]
[EventDate "2025.02.17"]
[EventType "team-tourn"]
[EventCountry "CZE"]
[SourceTitle "playchess.com"]
[Source "ChessBase"]
[SourceQuality "1"]
[TimeControl "40/5400+30:1800+30"]

{[%evp 9,105,35,50,41,38,32,43,7,72,16,15,14,20,10,17,10,19,9,16,-15,-13,-47,-10,-36,20,0,0,0,29,16,41,47,45,43,57,39,64,16,22,12,30,34,41,35,34,35,34,0,103,102,108,31,108,100,147,154,234,143,181,120,133,117,106,125,190,175,170,147,310,283,313,306,364,371,371,371,336,379,361,302,1914,1801,1172,1114,1905,273,1891,455,1921,1908,2206,2199,2500,1696,1328,1089,5254,5181]} 1. e4 {[%emt 0:00:04]} d6 {[%emt 0:00:13]} 2. d4 {[%emt 0:00:15]} Nf6 {[%emt 0:00:10]} 3. Nc3 {[%emt 0:00:20]} g6 {[%emt 0:00:08]} 4. Bg5 {[%emt 0:00:38]} c6 {[%emt 0:01:13]} 5. Qd2 {[%emt 0:02:28]} Nbd7 {[%emt 0:00:13]} 6. O-O-O {[%emt 0:01:29][%cal Oe4e5]} Qa5 {[%emt 0:06:28]} 7. Kb1 {[%emt 0:07:37]} b5 {[%emt 0:04:00]} 8. Bd3 {[%emt 0:05:17] White is slightly better.} Bb7 {[%emt 0:09:27] [#]} (8... b4 $11 9. Nce2 d5) 9. Nd5 {[%emt 0:14:25]} Qxd2 $11 {[%emt 0:02:37]} 10. Nxf6+ {[%emt 0:00:04] A sharp opening} Nxf6 {[%emt 0:00:37]} 11. Rxd2 {[%emt 0:01:24]} Bg7 {[%emt 0:00:45]} 12. f3 {[%emt 0:00:12]} O-O {[%emt 0:05:07]} 13. Ne2 {[%emt 0:00:35]} a6 {[%emt 0:09:36]} 14. a4 {[%emt 0:08:21]} Rfe8 {[%emt 0:10:16]} 15. c3 {[%emt 0:06:43]} Nd7 {[%emt 0:01:51]} 16. Kc2 {[%emt 0:03:08]} Nb6 (16... bxa4 $15 17. Ra1 c5) 17. axb5 {[%emt 0:01:21]} axb5 {[%emt 0:04:48]} 18. Rdd1 {[%emt 0:00:08]} Kf8 {[%emt 0:11:42]} 19. Ra1 {[%emt 0:02:56]} Ra4 {[%emt 0:02:49]} 20. Rxa4 {[%emt 0:01:00]} Nxa4 {[%emt 0:01:17]} 21. Be3 {[%emt 0:02:55]} Nb6 {[%emt 0:05:30]} 22. b3 {[%emt 0:01:56][%cal Od4d5,Bb2b3,Bb3b4][%mdl 32]} Ra8 {[%emt 0:02:09]} 23. Kb2 {[%emt 0:01:09]} (23. d5 $14 {was preferable.} Nd7 24. dxc6 Bxc6 25. Nd4 Bxd4 (25... Ra2+ 26. Kb1 $16) 26. cxd4) 23... Nd7 {[%emt 0:03:22]} 24. Rd1 {[%emt 0:05:03]} e6 {[%emt 0:04:56]} 25. g4 {[%emt 0:06:47]} Ke7 {[%emt 0:02:15]} 26. h4 {[%emt 0:01:18]} e5 {[%emt 0:01:43]} 27. b4 $1 {[%emt 0:03:07]} exd4 {[%emt 0:03:51]} 28. cxd4 {[%emt 0:00:20]} Ra4 {[%emt 0:02:02]} (28... Nb6 $11 {keeps the balance.}) 29. Kb3 $16 {[%emt 0:01:31]} Ra8 {[%emt 0:01:51]} 30. g5 {[%emt 0:03:59]} (30. Rc1 $16) 30... f6 {[%emt 0:01:03]} (30... Nb6 $14) 31. Rc1 {[%emt 0:03:06][%cal Od4d5]} Rf8 {[%emt 0:01:39]} (31... Rc8 $142 32. h5 fxg5) 32. f4 {[%emt 0:02:33] White is more active.} Nb8 {[%emt 0:00:42]} (32... Rc8 $16 33. f5 Kf7) 33. Ra1 {[%emt 0:01:23]} Na6 {[%emt 0:00:40]} 34. Ra2 {[%emt 0:01:09]} ({White should play} 34. f5 $18) 34... Ra8 {[%emt 0:00:20]} 35. Rc2 {[%emt 0:00:52]} Rc8 {[%emt 0:00:49]} 36. Ng3 {[%emt 0:03:07]} Nc7 {[%emt 0:00:30]} (36... c5 $16 {was worth a try.} 37. dxc5 (37. bxc5 dxc5 38. dxc5 Bc6 $16) 37... dxc5) 37. h5 {[%emt 0:02:55][%cal Bh4h5,Bh5g6][%mdl 32] hxg6 would now be deadly.} fxg5 {[%emt 0:00:10]} 38. hxg6 {[%emt 0:00:16]} (38. fxg5 Rf8 39. hxg6 hxg6 $11) 38... gxf4 $2 {[%emt 0:01:28] Black cannot hold the game after this.} (38... hxg6 $16 39. f5 (39. fxg5 Rf8 $11) 39... Rf8 40. fxg6 (40. Bxg5+ Kd7 $16) 40... Rf3 41. Nf5+ (41. Bxg5+ Kf8 $17) 41... Kf8) 39. Nf5+ $18 {[%emt 0:00:37]} Kd7 {[%emt 0:00:55]} 40. Bxf4 {[%emt 0:00:40]} (40. Nxg7 fxe3 41. gxh7 Rh8 $18) 40... Ne6 {[%emt 0:00:26]} 41. Nxg7 {[%emt 0:15:55]} (41. Bxd6 hxg6 (41... Bxd4 $2 42. gxh7 Rh8 43. Rh2 $18) 42. e5 gxf5 $19) 41... Nxf4 {[%emt 0:06:58] [#]} 42. Rf2 $1 {[%emt 0:00:13]} Nxg6 {[%emt 0:04:07]} (42... Ke7 43. Nf5+) 43. Rf7+ {[%emt 0:00:15]} Ne7 {[%emt 0:00:09]} 44. e5 {[%emt 0:01:00]} d5 $2 {[%emt 0:11:00]} (44... dxe5 45. Bf5+ (45. dxe5 h5 $18) (45. Bxh7 exd4 46. Bf5+ Kd6 $11) 45... Kd8 46. dxe5 Ra8 47. Ne6+ (47. Bxh7 Bc8 $14) 47... Kd7 48. Rxh7 Ra7) 45. Bf5+ {[%emt 0:16:34]} Kd8 {[%emt 0:00:08]} 46. Ne6+ {[%emt 0:00:19]} Ke8 {[%emt 0:01:13]} 47. Rf8+ {[%emt 0:00:14]} (47. Rxh7 Nxf5 48. Rxb7 Ne7 $11) 47... Kd7 {[%emt 0:00:05] ...Rxf8 is the strong threat.} 48. Nc5+ {[%emt 0:02:08] White is clearly winning.} Kc7 {[%emt 0:00:07]} 49. Rf7 {[%emt 0:00:06]} Re8 {[%emt 0:00:20]} 50. Nxb7 {[%emt 0:01:13]} ({Stronger than} 50. Bxh7 Bc8 $11) 50... Kxb7 {[%emt 0:00:09]} 51. Bd7 ({Less strong is} 51. Bxh7 Kc7 $14) 51... Rg8 {[%emt 0:00:17]} 52. Rxe7 {[%emt 0:00:08] Be6+ would kill now.} Kb6 {[%emt 0:00:15]} 53. Rxh7 {[%emt 0:00:49] Weighted Error Value: White=0.16 (very precise) /Black=0.48  Loses game:     	---       	Black=1      Mistake:       	White=4     	Black=8      Inaccurate:     	White=6     	Black=3      OK:         	White=9     	Black=9      Best:        	White=6     	Black=4      Strong:       	White=2     	---} 1-0